bitfinex/quotes_ETHUSD_20241030
["timestamp","ask_amount","ask_price","bid_price","bid_amount"]
[1730268998623,3.84075982,2684.6,2684.3,2.79]
[1730268998954,0.11577982,2684.6,2684.3,2.79]
[1730268999120,3.84079982,2684.6,2684.3,2.79]
[1730268999324,3.72515,2684.5,2684.3,2.79]
[1730268999558,3.84079982,2684.6,2684.3,2.79]
[1730268999924,3.7251,2684.5,2684.3,2.79]
[1730269000455,0.11577982,2684.6,2684.3,2.79]
[1730269000665,0.11577982,2684.6,2683.8,3.0016]
[1730269000897,3.72538,2684.3,2683.8,3.0016]
[1730269001024,3.72538,2684.3,2683.8,6.72763]
[1730269001218,3.72559,2684.2,2683.8,3.0016]
[1730269002053,3.72516,2684.5,2684.1,2.79]
[1730269003456,3.7253,2684.4,2684.1,2.79]
[1730269003659,3.72516,2684.5,2684.1,2.79]
[1730269004454,3.72537,2684.3,2684.1,2.79]
[1730269005723,0.11577982,2684.6,2683.8,3.0016]
[1730269005724,3.72572,2684.1,2683.8,3.0016]
[1730269006633,3.7255,2684.2,2683.8,3.0016]
[1730269006835,3.72577,2684.1,2683.8,3.0016]
[1730269007148,3.72577,2684.1,2683.9,0.55]
[1730269007352,3.72578,2684.0,2683.9,0.55]
[1730269007559,3.72572,2684.1,2683.9,0.55]
[1730269008424,4.55524,2684.4,2684.1,0.55]
[1730269008739,3.72511,2684.5,2684.1,0.55]
[1730269008740,3.72539,2684.3,2684.1,0.55]
[1730269008938,3.72539,2684.3,2684.0,0.55]
[1730269009327,3.72556,2684.2,2684.0,0.55]
[1730269009676,3.72545,2684.3,2684.0,0.55]
[1730269010036,3.72545,2684.3,2683.8,3.0016]
[1730269010037,3.72551,2684.2,2683.8,3.0016]
[1730269010351,3.72551,2684.2,2683.9,0.55]
[1730269011027,3.72573,2684.1,2683.9,0.55]
[1730269011358,3.72551,2684.2,2683.9,0.55]
[1730269011560,7.45115,2684.2,2683.9,0.55]
[1730269011750,3.72564,2684.1,2683.9,0.55]
[1730269012458,3.72578,2684.0,2683.9,0.55]
[1730269012664,3.72522,2684.4,2683.9,0.55]
[1730269012966,3.72512,2684.5,2683.9,0.55]
[1730269012967,3.72578,2684.0,2683.9,0.55]
[1730269013269,3.72523,2684.4,2683.8,3.72597]
[1730269013439,3.84077982,2684.6,2683.9,5.96581]
[1730269013632,7.56584982,2684.6,2683.9,5.96581]
[1730269013849,7.56581982,2684.6,2684.0,3.7257]
[1730269014125,3.84077982,2684.6,2684.2,0.55]
[1730269014338,4.2248578,2684.6,2684.2,2.79]
[1730269014542,3.72509,2684.5,2684.2,2.79]
[1730269014858,3.72511,2684.5,2684.2,2.79]
[1730269015161,0.4998578,2684.6,2684.2,2.79]
[1730269015542,3.84080982,2684.6,2684.3,0.8272]
[1730269015742,7.56583982,2684.6,2684.4,0.55]
[1730269016069,7.56584982,2684.6,2684.4,0.55]
[1730269016227,3.84080982,2684.6,2684.4,0.55]
[1730269017129,7.56585982,2684.6,2684.4,0.55]
[1730269017470,3.84080982,2684.6,2684.4,0.55]
[1730269017633,3.84079982,2684.6,2684.4,0.55]
[1730269018034,3.72508,2684.5,2684.4,0.55]
[1730269018235,7.56583982,2684.6,2684.4,0.55]
[1730269018495,3.72508,2684.5,2684.4,0.55]
[1730269019461,0.11577982,2684.6,2684.4,0.55]
[1730269019874,3.84079982,2684.6,2684.4,0.55]
[1730269020235,3.72508,2684.5,2684.4,0.55]
[1730269021429,3.72508,2684.5,2684.2,2.79]
[1730269021843,3.72518,2684.5,2684.2,2.79]
[1730269022270,3.72572,2684.1,2683.9,2.24]
[1730269022569,3.72572,2684.1,2683.8,2.24]
[1730269023156,3.72556,2684.2,2683.8,2.24]
[1730269023460,3.72539,2684.3,2683.9,0.55]
[1730269023667,3.72532,2684.4,2684.1,0.55]
[1730269024428,3.72536,2684.3,2684.1,0.55]
[1730269024635,3.72578,2684.0,2683.7,0.7557]
[1730269024835,0.745068,2684.3,2683.4,3.72661]
[1730269024836,3.72621,2683.7,2683.4,0.7557]
[1730269025134,3.72633,2683.6,2683.4,0.7557]
[1730269025333,3.72647,2683.5,2683.4,0.7557]
[1730269025533,7.45253,2683.7,2683.4,0.7557]
[1730269025732,7.45253,2683.7,2683.1,5.23805386]
[1730269025733,3.72643,2683.6,2683.2,2.9957]
[1730269025959,3.72648,2683.5,2683.2,2.9957]
[1730269026167,4.49646,2683.9,2683.1,1.51103386]
[1730269026357,3.72688,2683.3,2683.1,1.51103386]
[1730269026847,3.72668,2683.4,2683.1,1.51103386]
[1730269027243,0.449646,2683.8,2683.3,2.24]
[1730269027244,3.72611,2683.8,2683.3,2.24]
[1730269027444,7.4523,2683.8,2683.3,5.45685177]
[1730269027665,3.72611,2683.8,2683.4,0.55]
[1730269027856,3.72611,2683.8,2683.4,1.3057]
[1730269028065,3.72626,2683.7,2683.4,1.3057]
[1730269028279,3.72627,2683.7,2683.4,1.3057]
[1730269028454,3.72627,2683.7,2683.5,2.24]
[1730269028660,3.72627,2683.7,2683.4,1.3057]
[1730269028967,3.72611,2683.8,2683.4,1.3057]
[1730269029187,3.72619,2683.7,2683.4,1.3057]
[1730269029350,3.72647,2683.5,2683.4,0.55]
[1730269029679,3.72662,2683.4,2683.2,0.55]
[1730269029881,3.72675,2683.3,2683.2,0.55]
[1730269030073,3.72689,2683.2,2683.1,3.75103386]
[1730269030272,0.7705,2683.6,2683.1,3.75103386]
[1730269030584,0.7705,2683.6,2683.1,1.51103386]
[1730269030796,0.449671,2683.5,2683.1,1.51103386]
[1730269030955,0.7705,2683.9,2683.2,5.96681]
[1730269031146,7.93583,2684.0,2683.5,0.7557]
[1730269031554,11.66172,2684.0,2683.5,0.7557]
[1730269031864,3.72592,2683.9,2683.5,0.7557]
[1730269032102,7.93583,2684.0,2683.6,0.55]
[1730269032393,3.72618,2683.8,2683.4,2.24]
[1730269032577,3.72618,2683.8,2683.5,0.55]
[1730269032782,3.72669,2683.4,2682.8,4.09995]
[1730269032951,0.7705,2683.5,2682.7,0.7557]
[1730269032952,3.7271,2683.1,2682.7,0.7557]
[1730269033378,3.7271,2683.1,2682.7,2.9957]
[1730269034391,3.72693,2683.2,2682.7,2.9957]
[1730269035273,4.49651,2683.9,2683.0,2.24]
[1730269035474,4.49651,2683.9,2683.2,3.72676]
[1730269035475,3.72608,2683.8,2683.2,3.72676]
[1730269035790,3.72608,2683.8,2683.3,3.72674]
[1730269036004,3.72608,2683.8,2683.2,3.72676]
[1730269036179,3.72601,2683.9,2683.4,5.96648]
[1730269036357,3.72577,2684.1,2683.5,3.72647]
[1730269036548,4.4961,2684.2,2683.5,3.72647]
[1730269036549,7.9358,2684.0,2683.5,3.72647]
[1730269037607,7.9358,2684.0,2683.6,0.7557]
[1730269039005,4.21,2684.0,2683.6,0.7557]
[1730269039371,3.72633,2683.6,2682.7,4.85581]
[1730269039609,3.72653,2683.5,2682.9,3.72723]
[1730269039770,3.72662,2683.4,2682.9,5.96723]
[1730269039971,3.72662,2683.4,2682.9,3.72723]
[1730269040210,3.72696,2683.2,2682.7,0.7557]
[1730269040515,3.72683,2683.3,2682.7,4.85578]
[1730269040715,3.72683,2683.3,2682.7,7.09178]
[1730269040869,3.72676,2683.3,2682.8,3.72735]
[1730269041208,3.72676,2683.3,2682.7,7.09178]
[1730269041209,3.72665,2683.4,2682.7,3.3643]
[1730269041511,3.72642,2683.6,2683.1,2.236]
[1730269041671,4.49671,2683.7,2683.1,2.236]
[1730269041866,4.49671,2683.7,2683.1,5.96294]
[1730269042093,3.72635,2683.6,2683.1,5.96294]
[1730269042568,4.49671,2683.7,2683.1,5.96294]
[1730269042906,8.22302,2683.7,2683.1,5.96294]
[1730269043109,3.72635,2683.6,2683.1,5.96294]
[1730269044202,3.72647,2683.5,2682.9,5.9633]
[1730269044502,3.72674,2683.4,2682.9,5.9633]
[1730269044708,3.72674,2683.4,2682.9,2.236]
[1730269044937,3.72701,2683.2,2682.7,1.1283]
[1730269045137,3.72701,2683.2,2682.7,4.85585]
[1730269045299,3.72701,2683.2,2682.7,7.09185]
[1730269046793,0.7705,2683.1,2682.7,5.96355]
[1730269046989,8.2239,2683.4,2682.8,3.72742]
[1730269047227,4.49715,2683.4,2682.8,3.72742]
[1730269047432,0.7705,2683.4,2682.8,3.72736]
[1730269047827,4.49719,2683.4,2682.8,3.72736]
[1730269048127,8.22388,2683.4,2682.8,3.72736]
[1730269048332,4.49719,2683.4,2682.8,3.72736]
[1730269048567,3.72684,2683.3,2682.8,3.72736]
[1730269048741,4.49719,2683.4,2682.9,2.236]
[1730269049236,4.49713,2683.4,2682.9,2.236]
[1730269049398,4.49713,2683.4,2682.9,5.9633]
[1730269049598,8.22386,2683.4,2682.9,5.9633]
[1730269050197,3.7269,2683.2,2682.7,9.69105]
[1730269050393,3.7269,2683.2,2682.7,9.69098]
[1730269050622,3.7269,2683.2,2682.7,5.96348]
[1730269050939,3.7269,2683.2,2682.8,3.72744]
[1730269051106,3.7269,2683.2,2682.6,2.6086]
[1730269051441,3.7269,2683.2,2682.7,3.72749]
[1730269052749,3.7269,2683.2,2682.7,7.455]
[1730269052953,3.7269,2683.2,2682.7,3.72749]
[1730269053116,3.7269,2683.2,2682.7,7.455]
[1730269053313,3.7269,2683.2,2682.7,3.72749]
[1730269053516,4.4972,2683.4,2682.8,3.72732]
[1730269054165,8.22393,2683.4,2682.8,3.72732]
[1730269054314,9.046323,2683.4,2682.8,3.72732]
[1730269054739,3.72676,2683.3,2682.8,3.72732]
[1730269056136,3.72676,2683.3,2682.7,7.45499]
[1730269056342,3.72676,2683.3,2682.8,3.72743]
[1730269056857,0.7705,2683.4,2682.9,3.72729]
[1730269057058,4.49716,2683.4,2682.9,3.72721]
[1730269057364,5.2956398,2683.4,2682.9,3.72721]
[1730269058845,3.72676,2683.3,2682.9,3.72721]
[1730269059233,3.72676,2683.3,2682.8,3.72742]
[1730269061522,3.72676,2683.3,2682.7,5.96355]
[1730269061749,3.72676,2683.3,2682.8,3.72742]
[1730269062224,3.72678,2683.3,2682.8,3.72736]
[1730269063020,3.72678,2683.3,2682.7,5.96355]
[1730269063021,7.45365,2683.3,2682.7,5.96355]
[1730269063331,7.45365,2683.3,2682.5,5.96374]
[1730269063332,3.72715,2683.1,2682.5,5.96374]
[1730269063655,3.72715,2683.1,2682.5,2.236]
[1730269063859,0.7705,2683.4,2682.5,5.96385]
[1730269063860,3.72725,2683.0,2682.5,5.96385]
[1730269064520,0.7705,2683.4,2682.6,3.72771]
[1730269064521,3.72703,2683.1,2682.6,3.72771]
[1730269064721,0.7705,2683.4,2682.7,3.72757]
[1730269064722,3.72687,2683.3,2682.7,3.72757]
[1730269064957,4.49721,2683.4,2682.7,3.72757]
[1730269064958,4.549308,2683.2,2682.7,3.72757]
[1730269065361,3.72714,2683.1,2682.5,5.96376]
[1730269065526,3.72714,2683.1,2682.5,9.69154]
[1730269066221,3.72714,2683.1,2682.5,5.96376]
[1730269066426,3.7269,2683.2,2682.6,3.7277]
[1730269066622,3.7269,2683.2,2682.5,5.96376]
[1730269066840,0.44974,2683.2,2682.7,3.72756]
[1730269067227,4.17665,2683.2,2682.7,3.72756]
[1730269067823,3.72704,2683.1,2682.5,9.69152]
[1730269068561,3.72704,2683.1,2682.6,3.72769]
[1730269069354,0.7838,2683.0,2682.6,3.72769]
[1730269069947,7.90367,2683.2,2682.7,3.72757]
[1730269069948,4.51071,2683.2,2682.7,3.72757]
[1730269070335,4.51071,2683.2,2682.7,3.7275]
[1730269071359,4.51071,2683.2,2682.7,7.45497]
[1730269071534,3.72668,2683.4,2682.8,3.72744]
[1730269071734,3.72621,2683.7,2682.8,3.72744]
[1730269071735,0.7838,2683.5,2683.0,3.72715]
[1730269072178,0.7838,2683.5,2683.0,3.72708]
[1730269072944,4.51028,2683.5,2683.0,3.72708]
[1730269073433,0.7838,2683.5,2683.0,3.72708]
[1730269073646,4.51031,2683.5,2683.0,3.72708]
[1730269073848,0.7838,2683.5,2683.1,3.72699]
[1730269074247,0.7838,2683.5,2683.0,3.72708]
[1730269075089,4.5103,2683.5,2683.0,3.72708]
[1730269075250,0.7838,2683.5,2683.1,3.72702]
[1730269075594,4.51001,2683.7,2683.2,3.72682]
[1730269075748,4.9619877,2683.7,2683.2,3.72682]
[1730269076344,3.72634,2683.6,2683.0,10.52105]
[1730269076552,4.9619877,2683.7,2683.0,5.96306]
[1730269076747,1.2357777,2683.7,2683.0,5.96306]
[1730269076971,3.72634,2683.6,2683.0,2.6086]
[1730269077148,3.72634,2683.6,2683.1,3.72695]
[1730269077848,4.51008,2683.7,2683.1,3.72695]
[1730269077849,8.23637,2683.7,2683.1,3.72695]
[1730269078250,3.72648,2683.5,2683.0,0.3726]
[1730269078484,0.7838,2683.3,2683.0,0.3726]
[1730269079374,0.7838,2683.3,2683.0,4.09976]
[1730269079570,0.7838,2683.3,2683.0,0.3726]
[1730269079786,0.7838,2683.5,2683.1,3.72702]
[1730269080090,0.7838,2683.5,2683.2,3.72687]
[1730269080287,0.7838,2683.8,2683.3,3.72674]
[1730269080464,0.7838,2683.8,2683.4,3.72654]
[1730269080665,0.7838,2683.8,2683.3,5.96274]
[1730269081053,1.31534144,2683.8,2682.8,0.3726]
[1730269081353,3.72696,2683.2,2682.8,0.3726]
[1730269081888,0.8444,2683.5,2682.8,0.3726]
[1730269082183,3.72689,2683.2,2682.8,0.3726]
[1730269082703,3.72683,2683.3,2683.0,12.0]
[1730269083459,0.8444,2683.5,2683.0,12.0]
[1730269083868,3.72683,2683.3,2683.0,12.0]
[1730269084295,4.556609,2683.3,2683.0,12.0]
[1730269085514,4.57143,2683.1,2683.0,11.13442248]
[1730269085717,3.72829,2682.2,2681.8,0.7654]
[1730269085915,3.72829,2682.2,2681.7,0.2709351]
[1730269086070,0.8444,2682.3,2681.3,4.16296616]
[1730269086071,3.72847,2682.1,2681.3,4.49487]
[1730269086270,3.7286,2682.0,2681.4,6.23638184]
[1730269086470,3.7286,2682.0,2681.4,5.96531]
[1730269086664,3.72847,2682.1,2681.4,2.236]
[1730269086894,0.8444,2682.3,2681.4,2.236]
[1730269087109,0.8444,2682.3,2681.6,7.19335522]
[1730269087292,3.72843,2682.1,2681.6,5.67669074]
[1730269087802,3.72842,2682.1,2681.6,5.67669074]
[1730269088105,3.72842,2682.1,2681.6,4.95735522]
[1730269088281,3.7286,2682.0,2681.6,4.95735522]
[1730269088632,3.7286,2682.0,2681.6,1.74050345]
[1730269088780,7.45724,2682.0,2681.6,1.74050345]
[1730269088979,7.45725,2682.0,2681.6,1.74050345]
[1730269089196,3.7286,2682.0,2681.6,1.74050345]
[1730269091945,3.72842,2682.1,2681.6,1.74050345]
[1730269092325,3.72858,2682.0,2681.6,1.74050345]
[1730269093015,3.72858,2682.0,2681.5,3.72918]
[1730269093443,3.72842,2682.1,2681.5,3.72918]
[1730269093729,3.72837,2682.2,2681.6,3.7291]
[1730269094400,0.8444,2682.3,2681.6,0.55]
[1730269094613,0.8444,2682.3,2681.5,3.72918]
[1730269094614,3.72878,2681.9,2681.4,4.27939]
[1730269094788,3.72863,2682.0,2681.4,4.27939]
[1730269095543,0.8444,2682.3,2681.6,4.2791]
[1730269095544,3.72844,2682.1,2681.6,4.2791]
[1730269095830,7.45673,2682.2,2681.6,4.2791]
[1730269096036,7.4567,2682.2,2681.6,4.2791]
[1730269096234,3.72842,2682.1,2681.6,4.2791]
[1730269096531,3.72884,2681.8,2681.4,0.55]
[1730269096730,3.72878,2681.9,2681.4,0.55]
[1730269096909,3.72849,2682.1,2681.4,0.55]
[1730269097104,3.72849,2682.1,2681.6,0.55]
[1730269097631,3.72857,2682.0,2681.6,0.55]
[1730269097930,0.8444,2681.8,2681.3,0.7654]
[1730269098100,0.8444,2681.8,2681.1,3.72972]
[1730269098495,3.72907,2681.7,2681.1,3.72972]
[1730269098908,4.57324,2681.8,2681.0,0.7654]
[1730269098909,3.72933,2681.5,2681.0,0.7654]
[1730269099110,0.8444,2681.4,2680.9,5.966]
[1730269099336,4.5738,2681.4,2680.8,3.73014]
[1730269099537,4.5738,2681.4,2680.9,3.73008]
[1730269099716,1.674697,2681.4,2680.5,0.7654]
[1730269099914,3.72985,2681.1,2680.6,3.7305]
[1730269100319,3.72985,2681.1,2680.5,8.22652]
[1730269100511,3.72953,2681.3,2680.7,3.73035]
[1730269100697,3.72953,2681.3,2680.7,5.96627]
[1730269100698,3.72965,2681.3,2680.7,5.96627]
[1730269101236,0.8444,2681.4,2681.1,0.55]
[1730269101437,0.01,2682.1,2680.7,5.45285177]
[1730269101438,0.8444,2682.5,2681.8,2.236]
[1730269101646,0.8444,2682.5,2681.9,0.55]
[1730269101856,0.8444,2682.5,2681.7,3.21685177]
[1730269101857,0.8444,2682.1,2681.7,0.55]
[1730269102341,0.8444,2682.5,2682.0,3.72846]
[1730269102540,3.72815,2682.3,2681.8,5.96472]
[1730269102701,3.72815,2682.3,2681.9,0.55]
[1730269103035,0.8444,2682.5,2681.9,0.55]
[1730269103359,3.72769,2682.7,2682.2,3.7282]
[1730269103638,3.72769,2682.7,2682.3,0.55]
[1730269103942,4.57185,2682.8,2682.3,0.55]
[1730269104104,4.57196,2682.8,2682.3,0.55]
[1730269104424,3.72763,2682.7,2682.3,0.55]
[1730269104632,3.72789,2682.5,2682.0,4.49388]
[1730269104802,3.72789,2682.5,2681.7,3.72888]
[1730269104803,3.72814,2682.3,2681.7,3.72888]
[1730269105011,4.57272,2682.2,2681.7,3.72888]
[1730269105452,0.8444,2682.2,2681.5,4.10184]
[1730269105743,3.72867,2682.0,2681.5,3.72921]
[1730269106110,0.8444,2682.2,2681.4,3.21685177]
[1730269106354,0.8444,2682.8,2682.2,3.72819]
[1730269106823,11.806,2683.0,2682.2,3.72819]
[1730269106824,15.53319,2683.0,2682.4,3.72791]
[1730269107012,15.53319,2683.0,2682.6,0.55]
[1730269107215,2.010474,2682.9,2682.6,0.55]
[1730269107530,5.737784,2682.9,2682.4,0.55]
[1730269108040,3.72781,2682.6,2682.2,0.55]
[1730269108351,3.72781,2682.6,2681.6,3.72908]
[1730269108352,0.8444,2681.7,2680.3,3.21685177]
[1730269108554,0.8444,2681.7,2680.7,2.236]
[1730269108555,3.72932,2681.5,2680.7,2.236]
[1730269108759,4.57349,2681.7,2681.0,3.72994]
[1730269109052,3.7293,2681.5,2680.8,2.236]
[1730269109556,3.72946,2681.4,2680.8,2.236]
[1730269109859,3.72946,2681.4,2680.7,2.236]
[1730269110150,4.475336,2681.4,2680.7,2.236]
[1730269110446,3.72956,2681.3,2680.7,2.236]
[1730269110847,3.72956,2681.3,2680.8,0.55]
[1730269111236,0.745876,2681.4,2680.8,0.55]
[1730269111551,3.72957,2681.3,2680.8,0.55]
[1730269111749,0.806,2681.2,2680.8,0.55]
[1730269112450,0.806,2681.2,2680.3,0.32176518]
[1730269112451,3.73003,2681.0,2680.0,3.8012]
[1730269112625,3.7302,2680.9,2680.0,4.01805177]
[1730269112943,3.73033,2680.8,2680.1,3.73107]
[1730269113255,0.37302,2680.9,2680.3,3.21685177]
[1730269113463,3.73002,2681.0,2680.3,3.21685177]
[1730269113621,3.73019,2680.9,2680.2,5.96785]
[1730269113817,3.73003,2681.0,2680.3,3.73083]
[1730269114021,3.73003,2681.0,2680.4,3.73075]
[1730269114259,3.7301,2680.9,2680.4,3.73075]
[1730269114428,3.7301,2680.9,2680.2,2.2368]
[1730269114429,3.7301,2680.9,2680.3,3.73092]
[1730269114823,7.46028,2680.9,2680.4,0.55]
[1730269115025,3.7301,2680.9,2680.3,4.2809]
[1730269115355,3.73038,2680.7,2680.2,0.0008]
[1730269115558,3.73057,2680.6,2680.2,0.0008]
[1730269115737,3.73038,2680.7,2680.2,0.0008]
[1730269115938,7.46086,2680.7,2680.2,0.0008]
[1730269116247,3.73075,2680.5,2680.2,0.0008]
[1730269116453,0.746119,2680.5,2680.2,0.0008]
[1730269116765,3.73088,2680.4,2680.2,0.0008]
[1730269116924,7.46179,2680.4,2680.2,0.0008]
[1730269117120,3.73088,2680.4,2680.2,0.0008]
[1730269117326,7.4618,2680.4,2680.2,0.0008]
[1730269117567,3.73088,2680.4,2680.2,0.0008]
[1730269117731,0.373088,2680.3,2680.2,0.0008]
[1730269117946,7.46178,2680.4,2680.2,0.0008]
[1730269118467,3.73088,2680.4,2680.2,0.0008]
[1730269118665,4.53692,2680.3,2680.2,0.0008]
[1730269118884,4.53692,2680.3,2679.0,3.21685177]
[1730269118885,3.73186,2679.7,2679.0,3.73262]
[1730269119039,0.373186,2679.6,2679.0,3.73262]
[1730269119226,0.373186,2679.6,2678.7,0.8012]
[1730269119227,4.53805,2679.5,2678.8,3.73294]
[1730269119422,8.27022,2679.5,2678.9,3.73276]
[1730269119727,10.95136436,2680.0,2679.1,0.8012]
[1730269119728,4.21,2680.0,2679.1,0.8012]
[1730269119954,4.21,2680.0,2679.5,3.73199]
[1730269120155,8.81608,2680.0,2679.4,3.73212]
[1730269120475,5.08472,2680.0,2679.5,3.73195]
[1730269120671,5.08472,2680.0,2679.4,3.73208]
[1730269120672,4.21,2680.0,2679.4,3.73208]
[1730269120985,4.21,2680.0,2679.2,3.73239]
[1730269120986,0.806,2679.9,2679.2,3.73239]
[1730269121193,3.73169,2679.8,2679.0,3.73265]
[1730269121482,0.806,2679.9,2678.8,5.96893]
[1730269121646,1.980741,2679.9,2679.1,3.73251]
[1730269121850,1.980741,2679.9,2679.3,3.73231]
[1730269122058,1.980741,2679.9,2679.3,3.73223]
[1730269122367,1.980741,2679.9,2678.9,1.398093]
[1730269122368,3.73165,2679.8,2679.1,3.7325]
[1730269122566,7.46338,2679.8,2679.1,3.73249]
[1730269122761,0.5712391,2679.7,2679.2,3.73242]
[1730269122967,3.73199,2679.6,2679.0,3.73273]
[1730269123172,0.5712391,2679.7,2679.0,3.73273]
[1730269123173,0.5712391,2679.7,2679.1,3.73257]
[1730269123373,4.3030291,2679.7,2679.1,3.73257]
[1730269123684,0.80347291,2679.6,2679.1,3.73257]
[1730269124256,4.53537291,2679.6,2679.0,3.73265]
[1730269124487,0.80347291,2679.6,2679.1,3.73249]
[1730269124689,4.53549291,2679.6,2679.0,3.73265]
[1730269124894,3.73202,2679.6,2679.0,3.73265]
[1730269125077,0.806,2679.5,2678.8,3.73293]
[1730269125283,4.53807,2679.5,2678.9,3.73278]
[1730269126598,4.53807,2679.5,2679.0,3.73272]
[1730269126895,0.453807,2679.4,2678.9,3.73278]
[1730269127093,4.185997,2679.4,2678.9,3.73278]
[1730269127395,0.453807,2679.4,2679.0,3.73273]
[1730269127607,0.453807,2679.4,2678.8,3.73301]
[1730269127909,0.453807,2679.4,2678.8,3.73293]
[1730269128103,0.8724027,2679.3,2678.9,3.73287]
[1730269128309,0.8724027,2679.3,2678.8,3.73293]
[1730269128606,0.8724027,2679.3,2678.6,3.73325]
[1730269128767,0.8434,2679.0,2678.6,3.73325]
[1730269129200,0.8434,2679.0,2678.4,3.73344]
[1730269129404,0.8434,2679.0,2678.3,3.73368]
[1730269129405,3.73296,2678.9,2678.3,3.73368]
[1730269129611,3.73296,2678.9,2678.1,3.73399]
[1730269129792,3.73296,2678.9,2678.2,3.73377]
[1730269129793,4.190756,2678.8,2678.2,3.73377]
[1730269129990,4.190756,2678.8,2678.1,3.73399]
[1730269129991,4.190756,2678.8,2678.3,3.7337]
[1730269130170,4.190756,2678.8,2678.1,3.73399]
[1730269130504,3.73353,2678.5,2677.9,3.73414]
[1730269130806,3.73351,2678.5,2677.9,3.73413]
[1730269131011,0.8434,2678.3,2678.0,3.73411]
[1730269131509,0.8434,2678.3,2678.1,3.73396]
[1730269131695,0.8434,2678.6,2677.7,0.07468348]
[1730269131882,0.8434,2678.6,2678.1,3.73391]
[1730269132068,0.8434,2678.6,2678.1,3.73389]
[1730269132277,1.3468086,2678.6,2678.1,3.73389]
[1730269132476,0.8434,2678.6,2678.0,0.8859]
[1730269132812,0.8434,2678.6,2678.4,3.73345]
[1730269133107,0.8434,2679.0,2678.4,3.73345]
[1730269133318,3.73296,2678.9,2678.2,3.73377]
[1730269133518,3.73296,2678.9,2677.6,2.236]
[1730269133519,4.60948014,2678.9,2677.6,3.73463]
[1730269133882,4.60948014,2678.9,2440.0,1.0]
[1730269133883,3.73484,2677.5,2676.7,5.47963345]
[1730269134219,3.73484,2677.5,2676.2,5.01202124]
[1730269134220,3.73506,2677.4,2676.2,4.68723363]
[1730269134420,5.0534,2677.6,2676.3,3.73646]
[1730269134421,3.73519,2677.3,2676.3,3.73646]
[1730269134587,3.73519,2677.3,2676.2,4.6224]
[1730269134795,3.73542,2677.1,2676.2,0.8859]
[1730269135098,3.73542,2677.1,2675.9,4.62289]
[1730269135311,4.57892,2677.0,2675.7,3.73728]
[1730269135685,3.73584,2676.8,2675.7,3.73728]
[1730269135890,3.73584,2676.8,2675.5,3.74754]
[1730269135891,3.0,2677.0,2675.0,1.13697204]
[1730269136118,3.0,2677.0,2675.6,3.73747]
[1730269136119,0.8434,2676.5,2675.6,3.73747]
[1730269136332,0.8434,2676.5,2675.6,4.62337]
[1730269136615,0.8434,2676.5,2675.7,0.462337]
[1730269137076,4.21,2676.6,2675.7,2.77308157]
[1730269137276,4.21,2676.6,2675.0,3.73818]
[1730269137277,3.73651,2676.3,2675.0,3.73818]
[1730269137497,0.8434,2676.2,2675.3,3.7378]
[1730269138113,4.58004,2676.2,2675.3,3.7378]
[1730269138322,4.58004,2676.2,2675.2,3.73801]
[1730269138832,3.73689,2676.1,2675.0,4.64198014]
[1730269139129,0.458029,2676.1,2675.3,3.73788]
[1730269139332,3.73694,2676.0,2675.0,4.62416]
[1730269139895,0.8434,2676.2,2675.6,3.73747]
[1730269140239,0.8434,2676.2,2675.4,7.49372014]
[1730269140407,0.8434,2676.2,2675.7,3.73725]
[1730269140616,0.8268,2676.5,2675.5,0.82411624]
[1730269140815,3.73661,2676.3,2675.3,4.28781]
[1730269141306,3.73661,2676.3,2675.5,3.73752]
[1730269141507,4.56306,2676.5,2675.5,3.73752]
[1730269141712,3.73659,2676.3,2675.5,3.7375]
[1730269142024,4.56306,2676.5,2675.9,3.73705]
[1730269142025,0.8268,2676.5,2675.9,3.73705]
[1730269142839,0.8268,2676.5,2676.1,3.73666]
[1730269143041,0.8268,2676.9,2676.1,3.73666]
[1730269143336,0.8268,2676.9,2676.3,3.73646]
[1730269143501,0.8268,2676.9,2676.3,3.73639]
[1730269143835,0.8268,2676.9,2676.5,3.73618]
[1730269144048,0.8268,2676.9,2676.3,4.48569701]
[1730269144335,0.8268,2676.9,2676.5,3.7362]
[1730269144499,0.8268,2677.4,2676.6,0.55]
[1730269144699,1.282967,2677.4,2676.7,3.73584]
[1730269144907,1.282967,2677.4,2676.9,3.73556]
[1730269144908,0.8268,2677.4,2676.9,3.73556]
[1730269145143,3.73454,2677.7,2676.9,0.55]
[1730269145144,0.8268,2677.7,2676.9,0.55]
[1730269145304,0.8268,2677.7,2676.9,4.28556]
[1730269145498,0.8268,2677.7,2677.0,3.73543]
[1730269145941,0.8268,2677.7,2677.2,3.73514]
[1730269146473,0.8268,2678.0,2677.3,3.73506]
[1730269146679,1.994612,2678.0,2677.3,3.73506]
[1730269146980,0.8268,2678.0,2677.4,3.73495]
[1730269147280,0.8268,2678.0,2677.4,0.55]
[1730269147481,0.8268,2678.0,2677.5,3.73474]
[1730269147997,0.8268,2678.0,2677.6,3.73468]
[1730269148275,4.21,2678.1,2677.7,3.73452]
[1730269148480,4.21,2678.1,2677.8,3.73439]
[1730269148775,4.21,2678.1,2677.7,3.73443]
[1730269150093,4.21,2678.1,2677.8,0.55]
[1730269150585,4.21,2678.1,2677.8,4.2844]
[1730269150875,4.21,2678.1,2677.9,3.73426]